[Event "45th FIDE Olympiad 2024"]
[Site "Budapest"]
[Date "2024.09.18"]
[Round "7.26"]
[White "Paichadze, Luka"]
[Black "Bacrot, Etienne"]
[Result "1-0"]
[ECO "B22"]
[WhiteElo "2516"]
[BlackElo "2665"]
[Annotator "TA"]
[PlyCount "131"]
[EventDate "2024.09.05"]
[EventType "team-tourn"]
[EventCountry "HUN"]
[SourceTitle "playchess.com"]
[Source "ChessBase"]
[SourceQuality "1"]
[WhiteTeam "Georgia"]
[BlackTeam "France"]
[WhiteTeamCountry "GEO"]
[BlackTeamCountry "FRA"]
[TimeControl "40/5400+30:1800+30"]

{[%evp 48,131,84,8,9,8,8,4,83,76,65,77,85,77,83,79,79,80,85,70,79,77,82,83,78,75,80,76,77,77,191,191,194,194,453,457,457,457,457,457,457,435,428,428,422,422,422,421,422,422,421,409,401,386,356,144,144,0,150,144,440,123,404,123,130,0,314,314,306,306,4670,4670,4670,4670,4610,4598,4574,4201,2171,600,5235,5190,5029,5022,4602,1457]} 1. e4 {[%emt 0:00:04]} c5 {[%emt 0:01:14]} 2. c3 {[%emt 0:00:07]} d5 {[%emt 0:00:52]} 3. exd5 {[%emt 0:00:10]} Qxd5 {[%emt 0:00:05]} 4. d4 {[%emt 0:00:44]} Nf6 {[%emt 0:00:13]} 5. Nf3 {[%emt 0:00:41]} e6 {[%emt 0:00:09]} 6. Na3 {[%emt 0:00:22]} a6 {[%emt 0:02:57]} 7. Nc4 {[%emt 0:01:23]} Nbd7 {[%emt 0:00:12]} 8. Be2 {[%emt 0:02:08]} b5 {[%emt 0:06:04]} 9. Ne3 {[%emt 0:07:28]} Qc6 {[%emt 0:04:13]} 10. a4 {[%emt 0:11:30]} Bb7 {[%emt 0:02:58]} 11. axb5 {[%emt 0:06:28]} axb5 {[%emt 0:00:07]} 12. Rxa8+ {[%emt 0:00:03]} Bxa8 {[%emt 0:00:05]} 13. O-O {[%emt 0:08:34]} Be7 {[%emt 0:06:52]} 14. dxc5 {[%emt 0:09:50]} Qxc5 {[%emt 0:00:08]} 15. Bd2 {[%emt 0:01:11]} O-O {[%emt 0:07:50]} 16. b4 {[%emt 0:03:10]} Qb6 {[%emt 0:01:18]} 17. Nd4 {[%emt 0:01:49]} Bxb4 {[%emt 0:09:28]} 18. Nxe6 {[%emt 0:00:38]} Qxe6 {[%emt 0:17:43]} 19. cxb4 {[%emt 0:00:06]} Ne5 {[%emt 0:00:04]} 20. Bc3 {[%emt 0:07:53]} Nc4 {[%emt 0:12:00]} 21. Bxc4 {[%emt 0:00:49]} bxc4 {[%emt 0:00:02]} 22. Qd4 {[%emt 0:00:15]} Qe4 {[%emt 0:01:08]} 23. Ra1 {[%emt 0:09:27]} Qxd4 {[%emt 0:11:41]} 24. Bxd4 {[%emt 0:00:06]} Nd5 {[%emt 0:00:31]} 25. Nxc4 {[%emt 0:12:47]} (25. Bc5 $16 Rb8 26. Nxc4) 25... Nxb4 $11 {[%emt 0:02:49]} 26. Bc5 {[%emt 0:00:23]} Nc2 {[%emt 0:00:04]} 27. Ra2 {[%emt 0:00:35]} Re8 {[%emt 0:06:38]} (27... Rb8 $11 {keeps the balance.} 28. h3 (28. Rxc2 $2 {is a self mate.} Rb1+) 28... Nb4) 28. f3 $1 $16 {[%emt 0:00:09]} (28. Rxc2 $2 Re1#) 28... Ne1 {[%emt 0:00:05]} 29. Ra3 {[%emt 0:04:02]} Bd5 {[%emt 0:06:38]} 30. Ne3 {[%emt 0:07:35]} Nxf3+ {[%emt 0:00:38]} 31. gxf3 {[%emt 0:00:25]} Bxf3 {[%emt 0:00:02]} 32. Nf5 {[%emt 0:00:18]} Bg4 {[%emt 0:00:21]} 33. Nd6 {[%emt 0:00:58]} Rd8 {[%emt 0:01:00]} 34. Bb6 {[%emt 0:00:12]} Rb8 {[%emt 0:00:17]} 35. Bc7 {[%emt 0:02:08]} Rf8 {[%emt 0:00:57]} 36. Kf2 {[%emt 0:00:41]} Be6 {[%emt 0:00:25]} 37. Ke3 {[%emt 0:00:22]} h6 {[%emt 0:00:16]} 38. Kd4 {[%emt 0:00:28]} g5 {[%emt 0:00:48]} (38... Kh7 $16) 39. Ke5 $18 {[%emt 0:01:39]} Kg7 {[%emt 0:00:01]} 40. Ra6 $1 {[%emt 0:00:27]} Kg6 $2 {[%emt 0:01:04]} (40... Rg8 41. Nf5+ Kh7) 41. Nxf7 $1 $18 {[%emt 0:31:49]} Rxf7 {[%emt 0:30:07]} 42. Rxe6+ {[%emt 0:00:05]} Kh5 {[%emt 0:00:18]} 43. Bd6 {[%emt 0:00:41]} Rf2 {[%emt 0:00:15]} 44. Kd5 {[%emt 0:00:00]} Rd2+ {[%emt 0:00:00]} 45. Kc6 {[%emt 0:00:00]} Rd3 {[%emt 0:00:00]} 46. Rf6 {[%emt 0:00:00]} Rh3 {[%emt 0:00:00]} 47. Kd5 {[%emt 0:00:00]} Kg4 {[%emt 0:00:00]} 48. Ke4 {[%emt 0:00:00]} h5 {[%emt 0:00:00]} 49. Rf1 {[%emt 0:00:00]} h4 {[%emt 0:00:00]} 50. Rg1+ {[%emt 0:00:00]} Kh5 {[%emt 0:00:00]} 51. Rb1 {[%emt 0:00:00]} (51. Be5 $1 $18 {and the rest is easy. Strongly threatening Rg2.} Kh6 52. Bf6) 51... Rc3 $16 {[%emt 0:00:00]} 52. Rg1 {[%emt 0:00:00]} Rh3 $1 {[%emt 0:00:00]} 53. Be5 {[%emt 0:00:00]} Ra3 $2 {[%emt 0:00:00][%mdl 8192]} (53... Kh6 $16 {was worth a try.} 54. Kf5 Rf3+ 55. Kg4 Rf2) 54. Rg2 $2 {[%emt 0:00:10]} (54. Bd4 $18 {Be3 would now be deadly.} Rh3 55. Be3) 54... Rb3 $2 {[%emt 0:00:00][%mdl 8192] [#]} (54... Rh3 $16 55. Bf6 g4) 55. Bd6 $2 {[%emt 0:01:36]} (55. Bf6 $1 $18) 55... Rb5 {[%emt 0:02:37]} 56. Be5 $2 {[%emt 0:00:46]} (56. Be7 $16) 56... Rb3 $18 {[%emt 0:00:10] [#]} 57. Bf6 $1 {[%emt 0:00:43]} Rb5 {[%emt 0:01:09]} 58. Bd4 {[%emt 0:01:35]} Rb4 $2 {[%emt 0:00:50]} (58... h3 59. Rg3 Rb4 60. Rxh3+ Kg4 61. Rg3+ Kh5) 59. h3 $18 {[%emt 0:02:41]} Ra4 {[%emt 0:02:42]} 60. Rg4 {[%emt 0:00:29]} Kg6 {[%emt 0:00:18]} 61. Kf3 {[%emt 0:00:17]} Ra5 {[%emt 0:01:04]} 62. Re4 {[%emt 0:00:55]} Kf5 {[%emt 0:00:27]} 63. Re8 {[%emt 0:00:51]} (63. Be3 $142 Ra3 64. Rc4) 63... Ra2 {[%emt 0:00:07]} 64. Re5+ {[%emt 0:00:29]} Kg6 {[%emt 0:00:23]} 65. Be3 {[%emt 0:00:27]} Rh2 {[%emt 0:00:06]} 66. Rxg5+ {[%emt 0:00:13]} 1-0

[Event "45th FIDE Olympiad 2024"]
[Site "Budapest"]
[Date "2024.09.18"]
[Round "7.26"]
[White "Lesbros, Bernard"]
[Black "Amarathunga, Kosala Sandeepa Cham"]
[Result "0-1"]
[WhiteElo "1938"]
[BlackElo "1956"]
[PlyCount "77"]
[EventDate "2024.09.05"]
[EventType "team-tourn"]
[EventCountry "HUN"]
[WhiteTeam "Senegal"]
[BlackTeam "Sri Lanka"]
[WhiteTeamCountry "SEN"]
[BlackTeamCountry "SRI"]
[TimeControl "40/5400+30:1800+30"]

1. Nf3 Nf6 2. c4 e6 3. g3 d5 4. Bg2 dxc4 5. Na3 Be7 6. O-O a6 7. Nxc4 c5 8. d4 b5 9. Nce5 O-O 10. a4 Bb7 11. axb5 axb5 12. Rxa8 Bxa8 13. Qb3 Qb6 14. dxc5 Bxc5 15. Nd3 Bd5 16. Qc2 Be7 17. Be3 Qb7 18. Rc1 Na6 19. Nfe1 h6 20. Nf4 Nb4 21. Qc7 Qxc7 22. Rxc7 Bd6 23. Nxd5 Nbxd5 24. Rc6 Nxe3 25. fxe3 Rd8 26. Bf3 e5 27. Nc2 e4 28. Bg2 Be5 29. Nd4 Bxd4 30. exd4 Rxd4 31. Rb6 Rb4 32. Kf2 Rxb2 33. Rb8+ Kh7 34. Rb7 Ng4+ 35. Ke1 f5 36. h3 Ne3 37. Bh1 Rb1+ 38. Kf2 Nd1+ 39. Kg2 {0-} 0-1

[Event "45th FIDE Olympiad 2024"]
[Site "Budapest"]
[Date "2024.09.18"]
[Round "7.27"]
[White "Maurizzi, Marc`andria"]
[Black "Jobava, Baadur"]
[Result "1/2-1/2"]
[ECO "D94"]
[WhiteElo "2595"]
[BlackElo "2582"]
[Annotator "TA"]
[PlyCount "139"]
[EventDate "2024.09.05"]
[EventType "team-tourn"]
[EventCountry "HUN"]
[SourceTitle "playchess.com"]
[Source "ChessBase"]
[SourceQuality "1"]
[WhiteTeam "France"]
[BlackTeam "Georgia"]
[WhiteTeamCountry "FRA"]
[BlackTeamCountry "GEO"]
[TimeControl "40/5400+30:1800+30"]

{[%evp 70,139,95,93,164,129,109,8,8,22,31,37,26,0,27,9,8,0,0,0,0,0,0,0,0,0,0,0,0,0,1084,0,0,0,29955,29954,29959,29956,29963,29965,29961,29965,29961,29963,29974,0,0,0,0,0,0,0,0,0,0,0,0,0,0,0,0,0,0,0,0,0,0,0,0,0,0,0]} 1. Nf3 {[%emt 0:01:03]} Nf6 {[%emt 0:01:09]} 2. c4 {[%emt 0:02:17]} c6 {[%emt 0:00:08]} 3. Nc3 {[%emt 0:00:47]} d5 {[%emt 0:00:06]} 4. e3 {[%emt 0:00:21]} g6 {[%emt 0:00:04]} 5. d4 {[%emt 0:00:49]} Bg7 {[%emt 0:00:05]} 6. Be2 {[%emt 0:01:10]} O-O {[%emt 0:00:08]} 7. O-O {[%emt 0:00:11]} Nbd7 {[%emt 0:06:31]} 8. cxd5 {[%emt 0:04:25]} Nxd5 {[%emt 0:03:00]} 9. Nxd5 {[%emt 0:08:24]} cxd5 {[%emt 0:00:08]} 10. Bd2 {[%emt 0:00:04]} e5 {[%emt 0:06:25]} 11. dxe5 {[%emt 0:04:48] D94: Grünfeld: 4 Nf3 Bg7 5 e3.} Nxe5 {[%emt 0:00:05]} 12. Nd4 {[%emt 0:01:00]} Nc4 $146 {[%emt 0:10:15]} ({Predecessor:} 12... a6 13. Rc1 Be6 14. Qb3 Qd7 15. Rfd1 Rfc8 16. Rxc8+ Rxc8 17. Bc3 Qe7 18. Nxe6 fxe6 {½-½ Paluch,L (1988)-Tropp,L (1924) SVK-chT2D 0910 2009 (9.5)}) 13. Bc3 {[%emt 0:09:08]} Bd7 {[%emt 0:02:08]} 14. Qb3 {[%emt 0:05:21]} b5 {[%emt 0:13:24]} 15. Nf3 {[%emt 0:09:51]} Bxc3 {[%emt 0:08:28]} 16. Qxc3 {[%emt 0:02:31]} Qe7 {[%emt 0:06:14]} 17. Rac1 {[%emt 0:05:13]} Rfc8 {[%emt 0:14:37]} 18. b3 {[%emt 0:12:19]} Nd6 {[%emt 0:02:36]} 19. Qa5 {[%emt 0:01:06]} Bg4 {[%emt 0:00:46]} 20. Qb4 {[%emt 0:06:04]} Bxf3 {[%emt 0:03:40]} 21. Bxf3 {[%emt 0:00:04]} Qe5 {[%emt 0:00:08]} 22. Rcd1 {[%emt 0:05:26]} Ne4 {[%emt 0:00:05]} 23. Rxd5 {[%emt 0:00:44]} Qxd5 {[%emt 0:00:03]} 24. Bxe4 {[%emt 0:00:04]} a5 {[%emt 0:00:03]} 25. Bxd5 {[%emt 0:00:31]} axb4 {[%emt 0:00:04]} 26. Bxa8 {[%emt 0:00:03]} Rxa8 {[%emt 0:00:03]} 27. Ra1 {[%emt 0:00:07]} h5 {[%emt 0:00:49]} 28. h4 {[%emt 0:02:08]} Kf8 {[%emt 0:00:30]} 29. Rd1 {[%emt 0:00:37]} Rxa2 {[%emt 0:00:22]} 30. Rd4 {[%emt 0:00:03]} Ke7 {[%emt 0:00:31]} 31. Rxb4 {[%emt 0:00:07]} Ra5 {[%emt 0:00:03]} 32. Kh2 {[%emt 0:01:55]} Kd6 {[%emt 0:00:09]} 33. Kg3 {[%emt 0:01:02]} Kc6 {[%emt 0:01:00]} 34. Rf4 {[%emt 0:04:07]} Ra7 {[%emt 0:00:34]} 35. Rd4 {[%emt 0:00:42]} Ra3 {[%emt 0:03:06]} 36. b4 $1 {[%emt 0:00:16]} Ra2 {[%emt 0:03:28]} (36... Rc3 $16 {might work better.}) 37. e4 {[%emt 0:01:29]} f6 {[%emt 0:11:05]} 38. Rd8 {[%emt 0:11:04]} ({White should try} 38. Kf3 $16) 38... Rb2 $11 {[%emt 0:00:06]} 39. Rf8 {[%emt 0:00:05]} Rxb4 {[%emt 0:00:03]} 40. Rxf6+ {[%emt 0:00:03]} Kc5 {[%emt 0:00:05]} 41. f3 {[%emt 0:05:05]} Rd4 {[%emt 0:01:22]} 42. Rxg6 {[%emt 0:05:02]} b4 {[%emt 0:00:05]} 43. Ra6 {[%emt 0:04:50]} b3 {[%emt 0:00:31]} 44. Ra1 {[%emt 0:00:25]} b2 {[%emt 0:02:15]} 45. Rb1 {[%emt 0:00:12]} Rd2 {[%emt 0:03:06]} 46. Kf4 {[%emt 0:01:12]} Rxg2 {[%emt 0:04:10]} 47. Ke5 {[%emt 0:02:30]} Kc6 {[%emt 0:01:55]} 48. Ke6 {[%emt 0:04:38]} Kc7 $1 {[%emt 0:04:04]} 49. f4 {[%emt 0:02:01]} Rg4 $2 {[%emt 0:05:29][%mdl 8192]} (49... Kd8 $11) 50. Kf5 $2 {[%emt 0:01:00]} (50. Rxb2 $18 {Kf5 would now be deadly.} Rxf4 51. e5) 50... Rg2 $11 {[%emt 0:00:04]} 51. Kf6 {[%emt 0:06:45]} Rg4 $2 {[%emt 0:02:11][%mdl 8192]} (51... Kd7 $11) 52. f5 $1 {[%emt 0:01:19]} (52. Rxb2 Rxf4+ 53. Ke5 Rxh4 $11) 52... Rxe4 {[%emt 0:00:07]} 53. Rxb2 {[%emt 0:01:23]} Rxh4 {[%emt 0:00:05] [#]} 54. Kg6 $1 {[%emt 0:02:20]} Rf4 {[%emt 0:03:26]} 55. f6 {[%emt 0:01:12]} (55. Kxh5 Rxf5+ 56. Kg4 Rc5 $11) 55... h4 {[%emt 0:01:11] [#]} 56. f7 $1 {[%emt 0:00:30]} Rf1 {[%emt 0:01:17]} 57. Rb4 $2 {[%emt 0:00:36]} (57. Re2 {mates} h3 58. Kg7 Rg1+ 59. Kf6 Rf1+ 60. Ke7 h2 61. Rc2+ (61. f8=R $2 h1=Q $19) (61. f8=Q Rxf8 62. Rc2+ Kb7 $11) (61. Rxh2 Re1+ 62. Kf6 Rf1+ 63. Kg7 Rg1+ 64. Kh8 Rf1 $18) 61... Kb6 62. Rxh2 (62. f8=B h1=Q 63. Rb2+ Kc6 64. Rc2+ Kb5 65. Rb2+ Kc4 66. Rc2+ Kd3 67. Ke6 Rxf8 68. Ke7 Qh6) (62. f8=Q Rxf8 63. Rxh2 Rf1 $11)) 57... h3 $11 {[%emt 0:00:31]} 58. Rh4 {[%emt 0:00:08]} (58. Rb1 $5 Rf2 $8 (58... Rxb1 $2 59. f8=Q $18) 59. Re1 $11 (59. Kg7 Rg2+ 60. Kh7 Rf2 $11)) 58... Rg1+ $1 {[%emt 0:00:08]} 59. Kh7 {[%emt 0:00:30]} (59. Kh5 $5 Rf1 $8 60. Kg6 (60. Rxh3 Rxf7 61. Kg4 Rf6 $11) 60... Rg1+ 61. Kh7 $11) 59... Rf1 {[%emt 0:00:04]} 60. Kg8 {[%emt 0:00:07]} (60. Kg7 $5 Rg1+ $8 61. Kh7 $11) 60... Rg1+ {[%emt 0:00:04]} 61. Kf8 {[%emt 0:00:03]} (61. Kh7 $5 Rf1 $8 62. Kg7 (62. Rxh3 Rxf7+ 63. Kg6 Rf1 $11) 62... Rg1+ 63. Kh8 $11) 61... Rg3 {[%emt 0:00:11]} 62. Ke7 {[%emt 0:00:48]} Re3+ {[%emt 0:00:04]} 63. Kf6 {[%emt 0:00:07]} Rf3+ {[%emt 0:00:05]} 64. Ke6 {[%emt 0:00:02]} (64. Kg7 $5 Rg3+ $8 65. Kf6 Rf3+ 66. Kg7 Rg3+ 67. Kh7 $11) 64... Re3+ $1 {[%emt 0:00:07]} 65. Kf5 {[%emt 0:01:25]} Rf3+ {[%emt 0:00:05]} 66. Kg6 {[%emt 0:01:01]} (66. Ke6 $5 Re3+ $8 67. Kf6 Rf3+ 68. Kg7 Rg3+ 69. Kh8 $11) 66... Rg3+ $1 {[%emt 0:00:07]} 67. Kf5 {[%emt 0:00:12]} (67. Kh7 $5 Rf3 $8 68. Kg7 Rg3+ 69. Kf6 Rf3+ 70. Ke6 (70. Kg7 Rg3+ 71. Kh8 Rf3 $11) 70... Re3+ 71. Kf6 Rf3+ $11) 67... Rf3+ {[%emt 0:00:05]} 68. Rf4 {[%emt 0:00:01]} (68. Ke6 $5 Re3+ $8 69. Kd5 $11 (69. Kf6 Rf3+ 70. Kg7 Rg3+ 71. Kh7 Rf3 $11)) 68... Rxf4+ {[%emt 0:00:04]} 69. Kxf4 {[%emt 0:00:02]} h2 {[%emt 0:00:05]} 70. f8=Q {[%emt 0:00:03]} 1/2-1/2

[Event "45th FIDE Olympiad 2024"]
[Site "Budapest"]
[Date "2024.09.18"]
[Round "7.27"]
[White "Kodithuwakku, K K Dinujaya"]
[Black "Marochkina, Nadezhda Valerevna"]
[Result "1-0"]
[WhiteElo "1827"]
[BlackElo "1792"]
[PlyCount "89"]
[EventDate "2024.09.05"]
[EventType "team-tourn"]
[EventCountry "HUN"]
[WhiteTeam "Sri Lanka"]
[BlackTeam "Senegal"]
[WhiteTeamCountry "SRI"]
[BlackTeamCountry "SEN"]
[TimeControl "40/5400+30:1800+30"]

1. d4 d5 2. Nc3 Nf6 3. Bf4 c6 4. e3 Bg4 5. f3 Bf5 6. g4 Bg6 7. h4 h6 8. Bd3 Bxd3 9. Qxd3 e6 10. Nge2 Nbd7 11. O-O-O Nb6 12. b3 Bd6 13. Kb1 Ba3 14. g5 Nh5 15. gxh6 g6 16. Bg5 Qc7 17. Nf4 Bf8 18. Nxh5 gxh5 19. Rde1 Bxh6 20. Bf6 Rg8 21. Qh7 Rg6 22. Be5 Qe7 23. Rhg1 Qxh4 24. Kb2 Bxe3 25. Rh1 Qf2 26. Nd1 Bxd4+ 27. Kc1 Qxf3 28. Bxd4 Qf4+ 29. Be3 Qf6 30. Kb1 Rg7 31. Qxh5 O-O-O 32. Rhf1 Qe7 33. Qe5 Rg2 34. Bf4 Na8 35. Ne3 Rg6 36. Nf5 Qc5 37. Qb8+ Kd7 38. Qxb7+ Ke8 39. Bd6 Rd7 40. Qxa8+ Rd8 41. Qb7 Rd7 42. Qc8+ Rd8 43. Rxe6+ fxe6 44. Ng7+ Rxg7 45. Rf8# 1-0

[Event "45th FIDE Olympiad 2024"]
[Site "Budapest"]
[Date "2024.09.18"]
[Round "7.28"]
[White "Pantsulaia, Levan"]
[Black "Fressinet, Laurent"]
[Result "1/2-1/2"]
[ECO "A13"]
[WhiteElo "2516"]
[BlackElo "2616"]
[Annotator "TA"]
[PlyCount "70"]
[EventDate "2024.09.05"]
[EventType "team-tourn"]
[EventCountry "HUN"]
[SourceTitle "playchess.com"]
[Source "ChessBase"]
[SourceQuality "1"]
[WhiteTeam "Georgia"]
[BlackTeam "France"]
[WhiteTeamCountry "GEO"]
[BlackTeamCountry "FRA"]
[TimeControl "40/5400+30:1800+30"]

{[%evp 14,70,9,9,31,12,20,22,28,31,0,0,0,0,0,0,0,0,0,-17,0,0,0,-12,-15,-27,-29,-16,-17,-29,-25,-21,-27,-13,-27,-46,-54,-76,-71,-69,-60,-76,-38,-43,-55,-48,-41,-42,53,-99,-101,-87,-8,-7,-11,-16,-10,-7,-4]} 1. Nf3 {[%emt 0:00:04]} d5 {[%emt 0:00:13]} 2. g3 {[%emt 0:00:11]} Nf6 {[%emt 0:00:21]} 3. Bg2 {[%emt 0:00:07]} e6 {[%emt 0:00:08]} 4. O-O {[%emt 0:00:07]} c5 {[%emt 0:00:25]} 5. c4 {[%emt 0:00:49]} d4 {[%emt 0:00:30]} 6. e3 {[%emt 0:00:17]} Nc6 {[%emt 0:00:23]} 7. exd4 {[%emt 0:00:07]} cxd4 {[%emt 0:00:05]} 8. d3 {[%emt 0:00:04]} Bd6 {[%emt 0:00:18]} 9. Bg5 {[%emt 0:00:12]} O-O {[%emt 0:02:02]} 10. Nbd2 {[%emt 0:01:47]} Be7 {[%emt 0:02:47]} 11. a3 {[%emt 0:04:55]} a5 {[%emt 0:00:34]} 12. Bxf6 {[%emt 0:01:49]} Bxf6 {[%emt 0:00:08]} 13. c5 {[%emt 0:01:56]} Be7 {[%emt 0:02:53]} 14. Rc1 {[%emt 0:15:20]} Bd7 {[%emt 0:04:35]} 15. Re1 {[%emt 0:08:39]} Qc7 {[%emt 0:06:22]} 16. Ne4 {[%emt 0:11:34]} Rac8 {[%emt 0:16:54]} 17. Qb3 {[%emt 0:07:18]} Rfd8 {[%emt 0:06:22]} 18. Qb6 {[%emt 0:15:57]} Be8 {[%emt 0:09:49]} 19. Rc4 {[%emt 0:08:51]} Qxb6 {[%emt 0:11:44]} 20. cxb6 {[%emt 0:00:04]} Ra8 {[%emt 0:00:23][%cal Bc8a8,Ba8a6,Ba6b6,Bb6b3][%mdl 32]} 21. Nc5 {[%emt 0:07:49] Repels Ra6} Bxc5 {[%emt 0:01:40]} 22. Rxc5 {[%emt 0:00:01]} Ra6 {[%emt 0:00:07]} 23. Nd2 {[%emt 0:00:30][%cal Bf3d2,Bd2c4,Bc4a5,Ba5b3,Bb3c5][%mdl 32]} Rxb6 {[%emt 0:00:25]} 24. Nc4 {[%emt 0:00:05]} Rb3 {[%emt 0:01:48]} 25. Rd1 {[%emt 0:00:05][%cal Od1d2]} a4 {[%emt 0:03:53]} 26. Rd2 {[%emt 0:00:39]} Kf8 {[%emt 0:09:34]} 27. Bf3 {[%emt 0:00:46]} Nb8 {[%emt 0:01:59]} 28. Na5 {[%emt 0:03:06][%csl LRb3,LRb7]} b6 {[%emt 0:04:33]} 29. Nxb3 {[%emt 0:00:13]} bxc5 {[%emt 0:00:07]} 30. Nxc5 {[%emt 0:00:04]} Rc8 {[%emt 0:01:26]} (30... Nd7 $15 31. Na6 (31. Nxa4 $2 Ne5 $19) 31... Ne5) 31. b4 $2 {[%emt 0:01:08]} (31. Rc2 $14 {was the only good move.} Ke7 32. Bd1) 31... axb3 $17 {[%emt 0:03:22]} 32. Nxb3 {[%emt 0:00:05] [#]} Rc3 {[%emt 0:01:41]} (32... e5 $1 $17 33. Be4 Rc3) 33. Nxd4 $11 {[%emt 0:00:06] The position is equal.} Rxa3 {[%emt 0:00:12]} 34. Rb2 {[%emt 0:03:50]} Nd7 {[%emt 0:02:00]} (34... Rxd3 $2 {loses.} 35. Rxb8 Rxd4 36. Bc6 $18) 35. Rb3 {[%emt 0:00:46]} Rxb3 {[%emt 0:00:49] Weighted Error Value: White=0.17 (very precise) /Black=0.15 (very precise) .  Mistake:       	White=1     	Black=2      Inaccurate:     	---       	Black=1      OK:         	White=9     	Black=15     Best:        	White=3     	Black=2} 1/2-1/2

[Event "45th FIDE Olympiad 2024"]
[Site "Budapest"]
[Date "2024.09.18"]
[Round "7.28"]
[White "Cisse, Amadou Lamine"]
[Black "Bandara, Dhanushka"]
[Result "0-1"]
[WhiteElo "1948"]
[BlackElo "1903"]
[PlyCount "66"]
[EventDate "2024.09.05"]
[EventType "team-tourn"]
[EventCountry "HUN"]
[WhiteTeam "Senegal"]
[BlackTeam "Sri Lanka"]
[WhiteTeamCountry "SEN"]
[BlackTeamCountry "SRI"]
[TimeControl "40/5400+30:1800+30"]

1. d4 Nf6 2. Bg5 d5 3. Bxf6 exf6 4. c4 Bb4+ 5. Nc3 c5 6. a3 Bxc3+ 7. bxc3 Qa5 8. Qd2 cxd4 9. cxd4 Qxd2+ 10. Kxd2 dxc4 11. Rb1 Nc6 12. e3 Na5 13. Kc3 Be6 14. d5 Bd7 15. Nf3 Rc8 16. Nd4 O-O 17. Be2 Rc5 18. Bf3 f5 19. h4 b6 20. Rhd1 g6 21. g3 Ba4 22. Re1 Rd8 23. Rb4 b5 24. h5 Kg7 25. hxg6 hxg6 26. Rxa4 bxa4 27. Kb4 Nb7 28. Nc6 a5+ 29. Kxa4 Ra8 30. Rb1 Nd6 31. Nd4 Ra6 32. Nb5 Nc8 33. Nc3 Nb6+ {0-} 0-1

[Event "45th FIDE Olympiad 2024"]
[Site "Budapest"]
[Date "2024.09.18"]
[Round "7.29"]
[White "Theodorou, Nikolas"]
[Black "Caruana, Fabiano"]
[Result "1/2-1/2"]
[ECO "E08"]
[WhiteElo "2619"]
[BlackElo "2798"]
[Annotator "TA"]
[PlyCount "84"]
[EventDate "2024.09.05"]
[EventType "team-tourn"]
[EventCountry "HUN"]
[SourceTitle "playchess.com"]
[Source "ChessBase"]
[SourceQuality "1"]
[WhiteTeam "Greece"]
[BlackTeam "United States of America"]
[WhiteTeamCountry "GRE"]
[TimeControl "40/5400+30:1800+30"]

{[%evp 17,84,14,20,32,31,12,8,24,17,8,19,5,16,25,21,7,12,0,1,5,22,18,20,18,12,12,15,0,0,0,0,0,0,-13,0,0,0,0,0,0,0,0,0,-85,-12,-201,-200,-192,-210,-209,-76,-63,-54,-58,0,0,0,-10,0,0,0,0,0,0,0,0,0,0,0]} 1. d4 {[%emt 0:00:03]} Nf6 {[%emt 0:00:06]} 2. c4 {[%emt 0:00:06]} e6 {[%emt 0:00:02]} 3. Nf3 {[%emt 0:00:05]} d5 {[%emt 0:00:05]} 4. g3 {[%emt 0:00:05]} Bb4+ {[%emt 0:00:10]} 5. Bd2 {[%emt 0:00:06]} Be7 {[%emt 0:00:10]} 6. Bg2 {[%emt 0:00:12]} O-O {[%emt 0:00:07]} 7. O-O {[%emt 0:00:23]} c6 {[%emt 0:00:25]} 8. Qc2 {[%emt 0:00:29]} Nbd7 {[%emt 0:00:42]} 9. Bf4 {[%emt 0:00:36]} a5 {[%emt 0:00:36][%cal Ba7a5,Ba5a4][%mdl 32]} 10. Rd1 {[%emt 0:00:15]} a4 {[%emt 0:00:48]} 11. Nbd2 {[%emt 0:00:10][%cal Bb1d2,Bd2f1,Bf1g3][%mdl 32]} Nh5 {[%emt 0:00:54]} 12. Be3 {[%emt 0:00:05]} f5 {[%emt 0:01:46]} 13. Nf1 {[%emt 0:00:02]} Bd6 {[%emt 0:03:05]} 14. b3 {[%emt 0:00:03]} h6 {[%emt 0:02:10]} 15. Bd2 {[%emt 0:05:43]} Nhf6 {[%emt 0:25:36][%cal Bh5f6,Bf6e4,Be4d6,Bd6c4][%mdl 32]} 16. Bf4 {[%emt 0:14:56]} Bxf4 {[%emt 0:00:34]} 17. gxf4 {[%emt 0:00:03]} Ne4 {[%emt 0:01:10]} 18. Ng3 {[%emt 0:01:52]} b5 {[%emt 0:10:32]} 19. e3 {[%emt 0:22:09]} bxc4 {[%emt 0:04:51]} 20. bxc4 {[%emt 0:00:08]} Ba6 {[%emt 0:00:09]} 21. Bf1 {[%emt 0:04:29]} Nd6 {[%emt 0:04:18]} 22. cxd5 {[%emt 0:21:54]} (22. c5 {seems wilder.} Bxf1 23. cxd6 Bc4 24. Ne5) 22... cxd5 {[%emt 0:00:08]} 23. Bxa6 {[%emt 0:02:13]} Rxa6 {[%emt 0:00:05]} 24. Rab1 {[%emt 0:00:07]} Nc4 {[%emt 0:02:39]} 25. Kh1 {[%emt 0:00:32]} Ra8 {[%emt 0:07:08]} 26. Rg1 {[%emt 0:02:19]} Kh7 {[%emt 0:09:24]} 27. Rb4 {[%emt 0:03:26]} Qa5 {[%emt 0:09:07]} 28. Rb7 {[%emt 0:01:35]} Ra7 {[%emt 0:00:04]} 29. Rxa7 {[%emt 0:00:39]} Qxa7 {[%emt 0:00:03]} 30. Nh4 {[%emt 0:00:08]} (30. Ne5 $11 {keeps the balance.} Ndxe5 31. fxe5) 30... Rf7 {[%emt 0:01:12]} (30... Nf6 $17 31. Qd3 Rb8) 31. e4 $2 {[%emt 0:05:32] [#]} fxe4 $19 {[%emt 0:05:01]} ({Inferior is} 31... Qxd4 32. exf5 exf5 33. Nhxf5 $11) 32. Nxe4 {[%emt 0:00:02]} dxe4 {[%emt 0:00:04]} 33. Qxc4 {[%emt 0:02:11]} Nf8 {[%emt 0:00:06] Prevents f5.} (33... Rxf4 $19 34. Ng6 Rf6 (34... Rxf2 35. Qxe6 Qc7 36. Nf4 $17)) 34. Ng2 $17 {[%emt 0:03:56]} Rd7 {[%emt 0:01:22]} 35. Rd1 {[%emt 0:00:37]} Ng6 {[%emt 0:02:13]} ({Black should play} 35... Rd6 $15) 36. Qxe6 $11 {[%emt 0:03:24] The position is equal.} Rxd4 {[%emt 0:00:03]} 37. Re1 {[%emt 0:00:36]} Qa5 {[%emt 0:03:44]} 38. f5 {[%emt 0:04:59]} Nf4 {[%emt 0:05:28]} 39. Nxf4 {[%emt 0:00:37] [#] Intending Rg1 and mate.} Qxe1+ {[%emt 0:00:03]} 40. Kg2 {[%emt 0:00:04] White wants to mate with Qg6+.} Qd1 {[%emt 0:00:55]} (40... e3 $5 41. Qg6+ $8 Kh8 42. Qe8+ Kh7 43. Qg6+ Kh8 44. Qe8+ Kh7 45. Qg6+ $11) 41. Qg6+ {[%emt 0:30:40]} Kh8 {[%emt 0:30:04] ( -> ...Qf3+)} 42. Qe8+ {[%emt 0:00:16]} Kh7 {[%emt 0:00:02] Weighted Error Value: White=0.16 (very precise) /Black=0.13 (very precise) .  Loses game:     	White=1     	---        Mistake:       	White=1     	Black=3      OK:         	White=14    	Black=11     Best:        	White=3     	Black=2} 1/2-1/2

[Event "45th FIDE Olympiad 2024"]
[Site "Budapest"]
[Date "2024.09.18"]
[Round "7.29"]
[White "Njoroge, Martin"]
[Black "Al-Hajiri, Bader"]
[Result "0-1"]
[WhiteElo "1972"]
[BlackElo "1947"]
[PlyCount "46"]
[EventDate "2024.09.05"]
[EventType "team-tourn"]
[EventCountry "HUN"]
[WhiteTeam "Kenya"]
[BlackTeam "Kuwait"]
[WhiteTeamCountry "KEN"]
[BlackTeamCountry "KUW"]
[TimeControl "40/5400+30:1800+30"]

1. d4 d5 2. Nf3 Nf6 3. g3 g6 4. Bg2 Bg7 5. O-O O-O 6. b3 c5 7. Bb2 Ne4 8. e3 Nc6 9. Qc1 cxd4 10. exd4 Be6 11. Nbd2 Rc8 12. c4 Nxd2 13. Qxd2 dxc4 14. bxc4 Bxc4 15. Rfc1 Bd5 16. Qe2 Qb6 17. Rd1 Nb4 18. Qxe7 Nc2 19. Ba3 Rfe8 20. Qh4 Bxf3 21. Rab1 Bxd1 22. Rxb6 Re1+ 23. Bf1 axb6 {0-} 0-1